Cogmind - Beta 16 @@@ ROGUE MODE // 2026.02.03 @ 19:29:36 Player: Darkfire Result: Destroyed by Autobeam Turret with Autobeam Performance ------------- Evolutions (0) 0 Regions Visited (2) 400 Robots Destroyed (25) 125 Value Destroyed (460) 460 Prototype IDs (4) 80 Alien Tech Used (0) 0 Bonus (0) 0 TOTAL SCORE: 1065 Bonus ------- None Cogmind --------- Core Integrity 0/250 Matter 193/300 Energy 123/125 System Corruption 0% Temperature Cool (12) Movement Core (300) Ox5 Location -10/Subcaves Parts ------- > --- POWER (1) -------- Light Ion Engine > --- PROPULSION (2) --- (None) > --- UTILITY (2) ------ Improved Heat Sink Small Storage Unit > --- WEAPON (2) ------- Subdweller Machine Gun Barrage Gun > --- INVENTORY (8) ---- Light Ion Engine Light Ion Engine Heavy EM Pulse Gun Heavy EM Pulse Gun Light Assault Rifle Light Assault Rifle Grenade Launcher Grenade Launcher Peak State ------------ > --- POWER ------------ Light Ion Engine > --- PROPULSION ------- Light Treads > --- UTILITY ---------- Improved Heat Sink Small Storage Unit > --- WEAPON ----------- Heavy EM Pulse Gun Barrage Gun > --- INVENTORY -------- Light Ion Engine Light Ion Engine Heavy EM Pulse Gun Light Assault Rifle Light Assault Rifle Subdweller Machine Gun Grenade Launcher Grenade Launcher [Rating: 12] Favorites ----------- Power Light Ion Engine Engine Light Ion Engine Propulsion Light Treads Treads Light Treads Utility Small Storage Unit Device Improved Heat Sink Storage Small Storage Unit Processor Visual Processing Unit Weapon Heavy EM Pulse Gun Energy Gun Heavy EM Pulse Gun Ballistic Gun Barrage Gun Launcher Grenade Launcher Build | -11 -10 -10 ------- Run | Yrd Mat Sub Slots Evolved . | . . . Power . | . . . Propulsion . | . . . Utility . | . . . Weapon . | . . . Parts Attached 16 | 6 8 2 Power 2 | 1 1 . Engine 2 | 1 1 . Core . | . . . Reactor . | . . . Propulsion 2 | 2 . . Treads 2 | 2 . . Leg . | . . . Wheel . | . . . Hover . | . . . Flight . | . . . Utility 4 | 1 3 . Device 1 | . 1 . Storage 2 | 1 1 . Processor 1 | . 1 . Hackware . | . . . Protection . | . . . Artifact . | . . . Weapon 8 | 2 4 2 Energy Gun 4 | 2 2 . Energy Cannon . | . . . Ballistic Gun 2 | . . 2 Ballistic Cannon . | . . . Launcher 2 | . 2 . Special Weapon . | . . . Impact Weapon . | . . . Slashing Weapon . | . . . Piercing Weapon . | . . . Special Melee Weapon . | . . . Unidentified Prototypes . | . . . Parts Lost 4 | . 2 2 Power 1 | . 1 . Propulsion 2 | . . 2 Utility . | . . . Weapon 1 | . 1 . Highest Loss Streak 1 | . 1 1 To Critical Strikes . | . . . Average Backups 4 | . 3 6 Power 1 | . 1 2 Propulsion . | . . . Utility . | . . . Weapon 2 | . 2 4 Tool/Special . | . . . Unused Backups 5 | . 1 4 Power 2 | . . 2 Propulsion . | . . . Utility . | . . . Weapon 3 | . 1 2 Tool/Special . | . . . Average Slot Usage (%) 92 | . 95 87 Engine 13 | . 13 14 Treads 23 | . 28 15 Device 8 | . 5 14 Storage 14 | . 15 14 Processor 2 | . 3 . Energy Gun 22 | . 24 18 Ballistic Gun 3 | . . 9 Launcher 2 | . 3 . Peak Build Rating 12 | 6 11 12 Average Rating 8 | 4 8 10 On Entrance 5 | . 6 11 Avg Prop Armor Cover (%) . | . . . Naked Turns . | . . . Heaviest Build 16 | 12 15 16 Greatest Support 40 | 40 40 40 Greatest Overweight (x) . | . . . Average Overweight (x) . | . . . Largest Inventory Capacity 8 | 8 8 8 Average Capacity 7 | 7 8 8 Most Carried 8 | 3 6 8 Average Carried 4 | . 3 6 Final Capacity 8 | 8 8 8 Final Carried 8 | 1 6 8 Class Distribution -------------------- 100% | Mutant Dominant Class ---------------- Mutant | -10/Materials Mutant | -10/Subcaves Resources | -11 -10 -10 ----------- Run | Yrd Mat Sub Matter Collected 513 | 260 163 90 Remotely . | . . . Salvage Created 498 | 100 259 139 Parts 43 | 1 27 15 Haulers Intercepted . | . . . Recyclers Shooed 1 | . 1 . Parts Field Recycled . | . . . Retrieved Matter . | . . . Parts Self-Destructed 9 | . . 9 Prevented . | . . . Parts Restored . | . . . Kills | -11 -10 -10 ------- Run | Yrd Mat Sub Combat Hostiles Destroyed 15 | . 9 6 Guns 7 | . 2 5 AOE 7 | . 7 . Classes Destroyed 8 | 1 6 1 Worker 2 | . 2 . Builder 2 | . 2 . Tunneler 2 | . 2 . Recycler 1 | 1 . . Watcher 3 | . 3 . Swarmer 7 | . 3 4 Grunt 6 | . 6 . Subdweller 2 | . . 2 Best Kill Streak 7 | 1 7 4 Combat Bots Only 4 | . 4 4 Max Kills in Single Turn 2 | 1 2 2 Gunslinging 1 | . 1 1 Exploded 1 | . 1 . Melee . | . . . Uniques/NPCs Destroyed . | . . . Combat | -11 -10 -10 -------- Run | Yrd Mat Sub Hostile Shots Fired 146 | . 68 78 Missed 63 | . 25 38 Hits 83 | . 43 40 Projectile 83 | . 43 40 Critical Strikes 1 | . 1 . Damage Taken 1013 | . 621 392 Core 258 | . 140 118 Absorbed by Shields . | . . . Core Remaining (%) 100 | 100 . . Volleys Fired 50 | 5 28 17 Largest 2 | 2 2 2 Hottest 90 | 90 90 90 Shots Fired 92 | 6 52 34 Gun 73 | 6 33 34 Cannon . | . . . Launcher 19 | . 19 . Special . | . . . Kinetic 18 | . . 18 Thermal 18 | 1 17 . Explosive 19 | . 19 . Electromagnetic 37 | 5 16 16 Robot Hit Streak 10 | 3 5 10 Robot Miss Streak 7 | 2 7 5 Penetration Max . | . . . Secondary Targets 3 | . 1 2 Max Gunslinging Chain 1 | . 1 1 Shots Hit Robots 44 | 3 22 19 Core Hits 42 | 2 32 8 Critical Kills . | . . . Critical Parts Destroyed . | . . . Critical Strikes 2 | . 2 . Burn 2 | . 2 . Melee Attacks . | . . . Impact . | . . . Slashing . | . . . Piercing . | . . . Sneak Attacks . | . . . Combat Hostiles . | . . . Follow-up Attacks . | . . . Damage Inflicted 1704 | 84 1315 305 Guns 607 | 43 259 305 Cannons . | . . . Explosions 1095 | 41 1054 . Melee . | . . . Ramming 2 | . 2 . Kinetic 133 | . . 133 Thermal 224 | 41 183 . Explosive 971 | . 971 . Electromagnetic 374 | 43 159 172 Impact . | . . . Slashing . | . . . Piercing . | . . . Highest Corruption . | . . . Average Corruption . | . . . Corruption Purged . | . . . Corruption Blocked . | . . . Overload Shots . | . . . Overflow Damage 2 | . 2 . Projectiles . | . . . Explosions 2 | . 2 . Melee . | . . . Knockbacks . | . . . Impact . | . . . Kinetic . | . . . Secondary . | . . . Self-Inflicted Damage 99 | . 99 . Shots 4 | . 4 . Rammed 1 | . 1 . Targets Rammed 1 | . 1 . Kicked . | . . . Crushed . | . . . Highest Temperature 171 | 30 171 . Average Temperature 56 | 20 57 . Received Heat Transfer 387 | . 279 108 Siege Activations . | . . . Martial Activations . | . . . Shielding Activations . | . . . Robots Disrupted . | . . . Combat Hostiles . | . . . Robots Corrupted 1 | . . 1 Combat Hostiles 1 | . . 1 Parts Fried 3 | 1 . 2 Impact Corruptions . | . . . Robots Melted . | . . . Combat Hostiles . | . . . Parts Melted . | . . . Heat Transferred 594 | 50 544 . Parts Sabotaged . | . . . Parts Stolen . | . . . Parts Stripped . | . . . Power Chain Reactions 2 | 1 1 . Alert | -11 -10 -10 ------- Run | Yrd Mat Sub Maximum Alert Level . | . . . Low Security (%) 100 | 100 100 . Level 1 . | . . . Level 2 . | . . . Level 3 . | . . . Level 4 . | . . . Level 5 . | . . . High Security . | . . . Max Security . | . . . Peak Influence 145 | 5 145 . Initial . | . . . Average 59 | . 67 . Influence Increases 477 | 5 347 125 Destroy 0b10 Robot/C 260 | . 180 80 Destroy 0b10 Robot/NC 50 | 5 45 . Destroy Leader 36 | . 36 . Successful Hack 22 | . 22 . Destroy Structure 64 | . 64 . Lose Combat Pursuer 45 | . . 45 Influence Decreases 378 | 5 246 127 Entered New Map 49 | . . 49 Time Decay 289 | 5 226 58 Lost Part 40 | . 20 20 Squads Dispatched . | . . . Investigation . | . . . Extermination . | . . . Reinforcement . | . . . Assault . | . . . Garrison . | . . . Intercept . | . . . Searches Triggered . | . . . Construction Impeded . | . . . Haulers Reinforced . | . . . Active Scanning Responses . | . . . Cargo Convoy Interrupts . | . . . Stealth | -11 -10 -10 --------- Run | Yrd Mat Sub Distress Signals . | . . . Communications Jammed . | . . . Distress Signals . | . . . Times Spotted 26 | . 14 12 Peak Tracking Total 6 | . 5 6 Tactical Retreats 4 | . . 4 Traps | -11 -10 -10 ------- Run | Yrd Mat Sub Traps Triggered 1 | . . 1 Indirectly . | . . . Trap Hack Attempts . | . . . Triggered . | . . . Disarmed . | . . . Reprogrammed . | . . . Reused . | . . . Traps Extracted . | . . . Installed . | . . . Triggered . | . . . Machines | -11 -10 -10 ---------- Run | Yrd Mat Sub Machines Disabled 1 | . . 1 Max in Single Turn 1 | . . 1 Machines Repaired . | . . . Machines Dismantled . | . . . Machines Sabotaged . | . . . Overloaded Fab Kills . | . . . Hacking | -11 -10 -10 --------- Run | Yrd Mat Sub Machines Accessed 6 | . 6 . Terminals 6 | . 6 . Fabricators . | . . . Repair Stations . | . . . Recycling Units . | . . . Scanalyzers . | . . . Garrison Access . | . . . Total Hacks 17 | . 17 . Successful 10 | . 10 . Failed 7 | . 7 . Catastrophic . | . . . Database Lockouts . | . . . Manual . | . . . Terminals 17 | . 17 . Fabricators . | . . . Repair Stations . | . . . Recycling Units . | . . . Scanalyzers . | . . . Garrison Access . | . . . Terminal Hacks 10 | . 10 . Record 2 | . 2 . Prototype ID Bank 2 | . 2 . Alert Level 1 | . 1 . Locate Traps 4 | . 4 . Hauler Manifests 1 | . 1 . Fabricator Hacks . | . . . Repair Station Hacks . | . . . Recycling Unit Hacks . | . . . Scanalyzer . | . . . Garrison Access Hacks . | . . . Unauthorized Hacks . | . . . Terminals . | . . . Fabricators . | . . . Repair Stations . | . . . Recycling Units . | . . . Scanalyzers . | . . . Garrison Access . | . . . Data Cores Recovered . | . . . Used . | . . . Hacking Detections 5 | . 5 . Full Trace Events 1 | . 1 . Feedback Events . | . . . Feedback Blocked . | . . . Robot Schematics Acquired . | . . . Robots Built . | . . . Authchips . | . . . Time . | . . . Total Robot Build Rating . | . . . Part Schematics Acquired . | . . . Parts Built . | . . . Authchips . | . . . Time . | . . . Total Part Build Rating . | . . . Part Studies Acquired . | . . . Parts Repaired . | . . . Time . | . . . Parts Recycled . | . . . Recycled Matter . | . . . Retrieved Matter . | . . . Retrieved Components . | . . . Parts Scanalyzed . | . . . Part Schematics Acquired . | . . . Parts Damaged . | . . . Bothacking | -11 -10 -10 ------------ Run | Yrd Mat Sub Used RIF Installer . | . . . Robots Hacked . | . . . Non-combat . | . . . Combat . | . . . Robot Hacks Applied . | . . . Relay Couplers Released . | . . . Fabnet Peak Effective % . | . . . Robots Rewired . | . . . Allies Hacked . | . . . Hacks Repelled . | . . . Allies | -11 -10 -10 -------- Run | Yrd Mat Sub Total Allies . | . . . Largest Group . | . . . Highest-Rated Group . | . . . Highest-Rated Ally . | . . . Total Orders . | . . . Ally Attacks . | . . . Total Damage . | . . . Kills . | . . . Allies Corrupted . | . . . Allies Melted . | . . . Intel | -11 -10 -10 ------- Run | Yrd Mat Sub Active Infowar (turns) 229 | . 229 . Optics 229 | . 229 . Robot Analysis Total . | . . . Derelict Logs Recovered 1 | . . 1 Drone Launches . | . . . Drone Recoveries . | . . . Exploration | -11 -10 -10 ------------- Run | Yrd Mat Sub Turns Passed 1380 | 114 844 422 Spaces Moved 753 | 64 458 231 Core 10 | 10 . . Treads 743 | 54 458 231 Legs . | . . . Wheels . | . . . Hover . | . . . Flight . | . . . Fastest Speed 50 | 50 160 160 Average Speed 158 | 142 160 160 Slowest Speed 160 | 160 160 160 Overloaded Moves . | . . . Propulsion Burnouts . | . . . Robots Hopped . | . . . Potential Cave-ins . | . . . Cave-ins Triggered . | . . . Exploration Rate (%) 35 | 4 81 20 Regions Visited 2 Branch Regions 1 Pre-discovered Areas 1 | . . 1 Known Exits Taken . | . . . Unknown Exits Taken 2 | 1 1 . Scrap Searched . | . . . Spaces Dug . | . . . Terrain Destroyed 84 | . 83 1 Melee . | . . . Projectile 1 | . . 1 AOE 83 | . 83 . Terrain Rammed . | . . . Walls Destroyed . | . . . Machines Disabled . | . . . Actions | -11 -10 -10 --------- Run | Yrd Mat Sub Total 848 | 81 515 252 Wait . | . . . Move 751 | 63 457 231 Hop . | . . . Pick Up 22 | 7 13 2 Fast Attach . | . . . Attach 11 | 6 5 . Detach . | . . . Swap 9 | . 7 2 Drop 4 | . 4 . Fire 50 | 5 28 17 Melee . | . . . Ram . | . . . Kick . | . . . Crush 1 | . 1 . Escape Stasis . | . . . Rewire . | . . . Trap . | . . . Miscellaneous . | . . . Route ------- -11/Scrapyard -10/Materials (discovered 4 exits: [*Mat x2] / [*Min] / [*Sub]) -10/Subcaves (discovered 1 exit: [*Rec]) History --------- Turn | Location | Event 5 | -11/Scrapyard | Discovered new exit (range 14) 115 | -11/Scrapyard | Entered Materials 306 | -10/Materials | Build established: Mutant 343 | -10/Materials | Discovered new exit (range 16) 524 | -10/Materials | Discovered new exit (range 8) 836 | -10/Materials | Core integrity fell below 50% 876 | -10/Materials | Discovered new exit (range 16) 949 | -10/Materials | Discovered new exit (range 8) 959 | -10/Materials | Entered Subcaves 1205 | -10/Subcaves | Shifting Twisted Machinery released Sub. Machine Gun 1215 | -10/Subcaves | Shifting Twisted Machinery released Barrage Gun 1320 | -10/Subcaves | Learned location of Storage (-8) 1348 | -10/Subcaves | Discovered new exit (range 14) 1355 | -10/Subcaves | Core integrity fell below 20% 1381 | -10/Subcaves | Destroyed by Autobeam Turret with Autobeam Last Messages --------------- Acquired Barrage Gun. Acquired derelict log, extracted data. World map updated: -8/Storage. Triggered Shrapnel Trap. An expanding cloud of shrapnel blasts out in all directions. EXIT=FOUND S-10 Pest destroyed. Flight Unit fries itself beyond repair. Destroyed Flight Unit. S-10 Pest destroyed. Lgt. Ion Engine fries itself beyond repair. S-10 Pest destroyed. Switching to secondary target: S-10 Pest. S-10 Pest destroyed. Lgt. Ion Engine fries itself beyond repair. Lgt. Assault Rifle fries itself beyond repair. Flight Unit fries itself beyond repair. Lgt. Assault Rifle fries itself beyond repair. Lgt. Treads destroyed. Machine disabled. Map ----- +----------------------------------------------------+ | ?????????????????????????### #?????????? | | ???????????????????????????## ##?????????? | | ????????????????????????????# #####??????????? | | ????????????????????????????# ##??????????????? | | ??????????????????????????### ##???????????????? | | ?????????????????????????## ##????????????????? | | ??????????????????#?????## ##?????????????????? | | ??????????????????? ????# ##??????????????????? | | ???????????????????# ?### ###???????????????????? | | ???????????????????# ## #?????????????????????? | | ????????????????????# ## ###?????????????????????? | | ?????????????????????# #####??????????????????? | | ????????????????????### ##?????????????????? | | ???????????????????## #?????????????????? | | ??????????????????## # # # #?????????????????? | | ??????????????????# ### """ ??????????????? | | ??????????????????# #?#### ##??????????????? | | ??????????????????### ##?????##???????????????? | | ????????????????????## ##?????????????????????? | | ?????????????????????# ####??????????????????? | | ?????????????????????## #??????????????????? | | ????????????????????## ###??????????????????? | | ????????????????????#^ ;##???????????????????? | | ???????????????????## ;; #???????????????????? | | ??????????????????## ;;### "#????????????? | | ??????????????????# @ % t""#????????????? | | ?????????????????# % <#???????????? | | ????????????# %* t""##???????????? | | ????????????# ## "#????????????? | | ????????????### #?? "#????????????? | | ??????????????## ####??? " "#????????????? | | ???????????????### #???????####????????????? | | ?????????????????# #???????????????????????? | | ????????????????# ######???????????????????????? | | ???????????????? ?????????????????????????????? | | ???????????????# ?????????????????????????????? | | ???????????????# ??????????????????????????????? | | ???????????????? ??????????????????????????????? | | ?????????????????????????????????????????????????? | | ?????????????????????????????????????????????????? | | ?????????????????????????????????????????????????? | | ?????????????????????????????????????????????????? | | ?????????????????????????????????????????????????? | | ?????????????????????????????????????????????????? | | ?????????????????????????????????????????????????? | | ?????????????????????????????????????????????????? | | ?????????????????????????????????????????????????? | | ?????????????????????????????????????????????????? | | ?????????????????????????????????????????????????? | | ?????????????????????????????????????????????????? | +----------------------------------------------------+ Best States ------------- Heat Dissipation 39 Energy Generation 10 Energy Capacity 125 Matter Stores 300 Matter Capacity 350 Sight Range 18 Terrain Scan Density 10 Evasion (%) 50 Recoil Reduction 2 Item Schematics ----------------- None Robot Schematics ------------------ None Fabricated ------------ Nothing Repaired ---------- Nothing Studied --------- None Alien Tech Used ----------------- None Achievements -------------- None Challenges ------------ None Game ------ Seed DeliveryRingCompanion Manual? 0 Play Time 00:15:13 Cumulative 6.6 hours Start 2026.02.03 @ 19:07:49 End 2026.02.03 @ 19:29:36 Sessions 1 Manual Loads 0 Difficulty Rogue Special Mode None Game No. 8 Rogue 8 Adventurer 0 Explorer 0 Win Type - Total 0 Types 0/0/0/0/0/0/0/0/0/0 Lore% 5 Gallery% 10 Achievement% 9 Wizard Run 0 Options --------- Layout 1 ASCII 0 Keyboard 0 Movement Mouse Keybinds 0 Fullscreen 2 Font 24/Smallcaps Map View 76x35 Zoom Use 0% Tactical HUD 0 Map Filters NONE Filters NONE Steam 1 RUN: f47afcd9-4457-4848-afc5-39059ebe0791